[Event "Titled Tuesday Blitz November 01 Early 2022"]
[White "Harsh Suresh"]
[Black "Parpiev, Isaak"]
[WhiteFideId "45018464"]
[BlackFideId "34281576"]
[WhiteElo "2180"]
[BlackElo "2100"]
[Result "0-1"]
[Round "02"]
[TimeControl "180+1"]
[Date "2022.11.02"]
[WhiteClock "0:00:19"]
[BlackClock "0:00:21"]

1. Nf3 {[%clk 0:03:00]}  Nf6 {[%clk 0:02:59]} 2. c4 {[%clk 0:02:59]}  e6 {[%clk 0:02:57]} 3. g3 {[%clk 0:02:56]}  d5 {[%clk 0:02:57]} 4. cxd5 {[%clk 0:02:55]}  exd5 {[%clk 0:02:56]} 5. Bg2 {[%clk 0:02:55]}  Be7 {[%clk 0:02:54]} 6. O-O {[%clk 0:02:56]}  O-O {[%clk 0:02:54]} 7. d4 {[%clk 0:02:56]}  c6 {[%clk 0:02:50]} 8. Nc3 {[%clk 0:02:55]}  Bf5 {[%clk 0:02:50]} 9. Bg5 {[%clk 0:02:53]}  Nbd7 {[%clk 0:02:49]} 10. e3 {[%clk 0:02:50]}  Ne4 {[%clk 0:02:47]} 11. Bxe7 {[%clk 0:02:50]}  Qxe7 {[%clk 0:02:47]} 12. Nh4 {[%clk 0:02:48]}  Nd6 {[%clk 0:02:38]} 13. Nxf5 {[%clk 0:02:46]}  Nxf5 {[%clk 0:02:39]} 14. Rb1 {[%clk 0:02:41]}  a5 {[%clk 0:02:38]} 15. a3 {[%clk 0:02:41]}  Nb6 {[%clk 0:02:35]} 16. Qd3 {[%clk 0:02:37]}  g6 {[%clk 0:02:33]} 17. Rfc1 {[%clk 0:02:35]}  Nd6 {[%clk 0:02:22]} 18. b4 {[%clk 0:02:25]}  axb4 {[%clk 0:02:19]} 19. axb4 {[%clk 0:02:26]}  Nbc4 {[%clk 0:02:18]} 20. Ra1 {[%clk 0:02:21]}  b5 {[%clk 0:02:10]} 21. Qc2 {[%clk 0:01:56]}  Kg7 {[%clk 0:02:02]} 22. Qb3 {[%clk 0:01:55]}  h5 {[%clk 0:01:58]} 23. h4 {[%clk 0:01:48]}  Rfe8 {[%clk 0:01:57]} 24. Ne2 {[%clk 0:01:47]}  Ne4 {[%clk 0:01:51]} 25. Nf4 {[%clk 0:01:39]}  Ned2 {[%clk 0:01:29]} 26. Qc3 {[%clk 0:01:34]}  Ne4 {[%clk 0:01:29]} 27. Bxe4 {[%clk 0:01:34]}  Qxe4 {[%clk 0:01:28]} 28. Qd3 {[%clk 0:00:47]}  Qf3 {[%clk 0:01:06]} 29. Qe2 {[%clk 0:00:40]}  Qxe2 {[%clk 0:01:02]} 30. Nxe2 {[%clk 0:00:39]}  Ra4 {[%clk 0:00:44]} 31. Rxa4 {[%clk 0:00:27]}  bxa4 {[%clk 0:00:45]} 32. Nc3 {[%clk 0:00:25]}  a3 {[%clk 0:00:42]} 33. b5 {[%clk 0:00:16]}  cxb5 {[%clk 0:00:42]} 34. Nxb5 {[%clk 0:00:17]}  Rb8 {[%clk 0:00:21]} 35. Nc3 {[%clk 0:00:16]}  Nd2 {[%clk 0:00:20]} 36. Ra1 {[%clk 0:00:15]}  Rb3 {[%clk 0:00:14]} 37. Ra2 {[%clk 0:00:12]}  Rxc3 {[%clk 0:00:14]} 38. Rxd2 {[%clk 0:00:12]}  Kf6 {[%clk 0:00:13]} 39. Ra2 {[%clk 0:00:11]}  Kf5 {[%clk 0:00:13]} 40. Kf1 {[%clk 0:00:11]}  Kg4 {[%clk 0:00:12]} 41. Ke2 {[%clk 0:00:11]}  Rb3 {[%clk 0:00:12]} 42. Kd2 {[%clk 0:00:10]}  Rb2+ {[%clk 0:00:08]} 43. Rxb2 {[%clk 0:00:10]}  axb2 {[%clk 0:00:09]} 44. Kc2 {[%clk 0:00:11]}  Kf3 {[%clk 0:00:10]} 45. Kxb2 {[%clk 0:00:11]}  Kxf2 {[%clk 0:00:10]} 46. e4 {[%clk 0:00:11]}  dxe4 {[%clk 0:00:11]} 47. d5 {[%clk 0:00:12]}  e3 {[%clk 0:00:11]} 48. d6 {[%clk 0:00:13]}  e2 {[%clk 0:00:12]} 49. d7 {[%clk 0:00:14]}  e1=Q {[%clk 0:00:12]} 50. d8=Q {[%clk 0:00:15]}  Qe2+ {[%clk 0:00:11]} 51. Kb1 {[%clk 0:00:14]}  Qe4+ {[%clk 0:00:11]} 52. Kb2 {[%clk 0:00:14]}  Kxg3 {[%clk 0:00:11]} 53. Qg5+ {[%clk 0:00:12]}  Qg4 {[%clk 0:00:11]} 54. Qe5+ {[%clk 0:00:11]}  Qf4 {[%clk 0:00:11]} 55. Qe7 {[%clk 0:00:08]}  Qd4+ {[%clk 0:00:08]} 56. Ka2 {[%clk 0:00:07]}  Qxh4 {[%clk 0:00:08]} 57. Qxf7 {[%clk 0:00:07]}  Qg4 {[%clk 0:00:07]} 58. Qc7+ {[%clk 0:00:06]}  Qf4 {[%clk 0:00:07]} 59. Qc3+ {[%clk 0:00:05]}  Qf3 {[%clk 0:00:07]} 60. Qe5+ {[%clk 0:00:05]}  Kg4 {[%clk 0:00:07]} 61. Qe6+ {[%clk 0:00:06]}  Qf5 {[%clk 0:00:07]} 62. Qe2+ {[%clk 0:00:06]}  Kg5 {[%clk 0:00:08]} 63. Qe3+ {[%clk 0:00:06]}  Qf4 {[%clk 0:00:08]} 64. Qe7+ {[%clk 0:00:06]}  Kh6 {[%clk 0:00:09]} 65. Qe8 {[%clk 0:00:04]}  Qc4+ {[%clk 0:00:09]} 66. Kb2 {[%clk 0:00:04]}  Qd4+ {[%clk 0:00:09]} 67. Ka2 {[%clk 0:00:05]}  h4 {[%clk 0:00:09]} 68. Qf8+ {[%clk 0:00:05]}  Kh5 {[%clk 0:00:09]} 69. Qf3+ {[%clk 0:00:05]}  Kg5 {[%clk 0:00:08]} 70. Qg2+ {[%clk 0:00:04]}  Qg4 {[%clk 0:00:07]} 71. Qd5+ {[%clk 0:00:05]}  Qf5 {[%clk 0:00:08]} 72. Qd2+ {[%clk 0:00:05]}  Kg4 {[%clk 0:00:08]} 73. Qg2+ {[%clk 0:00:05]}  Kf4 {[%clk 0:00:08]} 74. Qh2+ {[%clk 0:00:05]}  Kg5 {[%clk 0:00:07]} 75. Qd2+ {[%clk 0:00:06]}  Qf4 {[%clk 0:00:06]} 76. Qd8+ {[%clk 0:00:05]}  Kg4 {[%clk 0:00:05]} 77. Qd7+ {[%clk 0:00:06]}  Qf5 {[%clk 0:00:05]} 78. Qd1+ {[%clk 0:00:06]}  Kf4 {[%clk 0:00:05]} 79. Qd2+ {[%clk 0:00:05]}  Kg3 {[%clk 0:00:05]} 80. Qd6+ {[%clk 0:00:04]}  Qf4 {[%clk 0:00:05]} 81. Qxg6+ {[%clk 0:00:04]}  Kf2 {[%clk 0:00:05]} 82. Qc2+ {[%clk 0:00:04]}  Kg1 {[%clk 0:00:05]} 83. Qd1+ {[%clk 0:00:04]}  Kg2 {[%clk 0:00:05]} 84. Qd5+ {[%clk 0:00:03]}  Kh2 {[%clk 0:00:04]} 85. Ka3 {[%clk 0:00:02]}  Qe3+ {[%clk 0:00:04]} 86. Ka4 {[%clk 0:00:02]}  Qf4+ {[%clk 0:00:04]} 87. Ka5 {[%clk 0:00:02]}  h3 {[%clk 0:00:03]} 88. Qa2+ {[%clk 0:00:02]}  Kg3 {[%clk 0:00:03]} 89. Qb3+ {[%clk 0:00:02]}  Qf3 {[%clk 0:00:03]} 90. Qg8+ {[%clk 0:00:02]}  Qg4 {[%clk 0:00:03]} 91. Qb3+ {[%clk 0:00:02]}  Kf2 {[%clk 0:00:04]} 92. Qc2+ {[%clk 0:00:02]}  Qe2 {[%clk 0:00:04]} 93. Qf5+ {[%clk 0:00:02]}  Qf3 {[%clk 0:00:04]} 94. Qc2+ {[%clk 0:00:02]}  Ke3 {[%clk 0:00:05]} 95. Qc3+ {[%clk 0:00:02]}  Kf4 {[%clk 0:00:05]} 96. Qf6+ {[%clk 0:00:03]}  Kg3 {[%clk 0:00:06]} 97. Qg5+ {[%clk 0:00:03]}  Qg4 {[%clk 0:00:06]} 98. Qe3+ {[%clk 0:00:04]}  Kh4 {[%clk 0:00:06]} 99. Qh6+ {[%clk 0:00:04]}  Qh5+ {[%clk 0:00:07]} 100. Qxh5+ {[%clk 0:00:04]}  Kxh5 {[%clk 0:00:08]} 101. Kb4 {[%clk 0:00:04]}  h2 {[%clk 0:00:09]} 102. Kc4 {[%clk 0:00:05]}  h1=Q {[%clk 0:00:09]} 103. Kd4 {[%clk 0:00:06]}  Qd1+ {[%clk 0:00:09]} 104. Ke4 {[%clk 0:00:07]}  Qg4+ {[%clk 0:00:09]} 105. Ke3 {[%clk 0:00:08]}  Qf5 {[%clk 0:00:10]} 106. Kd4 {[%clk 0:00:08]}  Qe6 {[%clk 0:00:10]} 107. Kc5 {[%clk 0:00:08]}  Qd7 {[%clk 0:00:10]} 108. Kc4 {[%clk 0:00:08]}  Qd6 {[%clk 0:00:11]} 109. Kc3 {[%clk 0:00:09]}  Qd5 {[%clk 0:00:11]} 110. Kb4 {[%clk 0:00:10]}  Qc6 {[%clk 0:00:11]} 111. Ka5 {[%clk 0:00:11]}  Qb7 {[%clk 0:00:12]} 112. Ka4 {[%clk 0:00:12]}  Qb6 {[%clk 0:00:13]} 113. Ka3 {[%clk 0:00:13]}  Qb5 {[%clk 0:00:14]} 114. Ka2 {[%clk 0:00:14]}  Qb4 {[%clk 0:00:14]} 115. Ka1 {[%clk 0:00:14]}  Kg4 {[%clk 0:00:15]} 116. Ka2 {[%clk 0:00:15]}  Kf4 {[%clk 0:00:16]} 117. Ka1 {[%clk 0:00:16]}  Ke5 {[%clk 0:00:17]} 118. Ka2 {[%clk 0:00:17]}  Kd5 {[%clk 0:00:18]} 119. Ka1 {[%clk 0:00:18]}  Kd4 {[%clk 0:00:19]} 120. Ka2 {[%clk 0:00:19]}  Kc3 {[%clk 0:00:20]} 121. Ka1 {[%clk 0:00:19]}  Qb2# {[%clk 0:00:21]} 0-1


[Site "https://www.chess.com"]

[Event "Titled Tuesday Blitz November 01 Early 2022"]
[White "Hoffmann, Asa"]
[Black "Goryachkina, Aleksandra"]
[WhiteFideId "2001470"]
[BlackFideId "4147103"]
[WhiteElo "2117"]
[BlackElo "2484"]
[Result "0-1"]
[Round "02"]
[TimeControl "180+1"]
[Date "2022.11.02"]
[WhiteClock "0:00:52"]
[BlackClock "0:00:10"]

1. d4 {[%clk 0:02:58]}  Nf6 {[%clk 0:02:59]} 2. Bg5 {[%clk 0:02:57]}  d5 {[%clk 0:02:57]} 3. Nd2 {[%clk 0:02:56]}  h6 {[%clk 0:02:52]} 4. Bh4 {[%clk 0:02:55]}  c5 {[%clk 0:02:42]} 5. e3 {[%clk 0:02:54]}  Nc6 {[%clk 0:02:41]} 6. c3 {[%clk 0:02:53]}  cxd4 {[%clk 0:02:35]} 7. exd4 {[%clk 0:02:53]}  Bg4 {[%clk 0:02:34]} 8. Qb3 {[%clk 0:02:51]}  Qd7 {[%clk 0:02:31]} 9. Ngf3 {[%clk 0:02:48]}  Bxf3 {[%clk 0:02:24]} 10. Nxf3 {[%clk 0:02:47]}  e6 {[%clk 0:02:24]} 11. Bb5 {[%clk 0:02:46]}  Bd6 {[%clk 0:02:22]} 12. Bxf6 {[%clk 0:02:41]}  gxf6 {[%clk 0:02:21]} 13. O-O {[%clk 0:02:40]}  a6 {[%clk 0:02:11]} 14. Bxc6 {[%clk 0:02:38]}  bxc6 {[%clk 0:02:07]} 15. Rac1 {[%clk 0:02:36]}  O-O {[%clk 0:02:02]} 16. c4 {[%clk 0:02:35]}  Kh7 {[%clk 0:01:52]} 17. Qd3+ {[%clk 0:02:33]}  f5 {[%clk 0:01:51]} 18. Rfe1 {[%clk 0:02:33]}  Rg8 {[%clk 0:01:45]} 19. Ne5 {[%clk 0:02:28]}  Bxe5 {[%clk 0:01:43]} 20. Rxe5 {[%clk 0:02:23]}  Rg4 {[%clk 0:01:40]} 21. f3 {[%clk 0:02:20]}  Rg6 {[%clk 0:01:38]} 22. cxd5 {[%clk 0:02:16]}  cxd5 {[%clk 0:01:35]} 23. Qc2 {[%clk 0:02:15]}  Rag8 {[%clk 0:01:32]} 24. g3 {[%clk 0:02:14]}  Qe7 {[%clk 0:01:17]} 25. Qc7 {[%clk 0:02:12]}  Qf6 {[%clk 0:01:14]} 26. Kf2 {[%clk 0:02:09]}  f4 {[%clk 0:00:50]} 27. Rg1 {[%clk 0:01:56]}  R8g7 {[%clk 0:00:43]} 28. Qc2 {[%clk 0:01:44]}  Kh8 {[%clk 0:00:28]} 29. b4 {[%clk 0:01:43]}  fxg3+ {[%clk 0:00:21]} 30. Rxg3 {[%clk 0:01:43]}  Qh4 {[%clk 0:00:18]} 31. Ke3 {[%clk 0:01:35]}  Rxg3 {[%clk 0:00:17]} 32. hxg3 {[%clk 0:01:34]}  Qxg3 {[%clk 0:00:17]} 33. Qf2 {[%clk 0:01:22]}  Qh3 {[%clk 0:00:13]} 34. a4 {[%clk 0:01:11]}  Rg2 {[%clk 0:00:12]} 35. Qe1 {[%clk 0:01:11]}  Qh2 {[%clk 0:00:11]} 36. b5 {[%clk 0:01:07]}  axb5 {[%clk 0:00:11]} 37. axb5 {[%clk 0:01:07]}  Rb2 {[%clk 0:00:11]} 38. Qc1 {[%clk 0:00:52]}  Rb3+ {[%clk 0:00:10]} 0-1


[Site "https://www.chess.com"]

[Event "Titled Tuesday Blitz November 01 Early 2022"]
[White "Horcajuelo Rocamora, Martin"]
[Black "Goltseva, Ekaterina"]
[WhiteFideId "24573027"]
[BlackFideId "24173770"]
[WhiteElo "2094"]
[BlackElo "2200"]
[Result "0-1"]
[Round "02"]
[TimeControl "180+1"]
[Date "2022.11.02"]
[WhiteClock "0:01:35"]
[BlackClock "0:00:19"]

1. e4 {[%clk 0:03:00]}  e5 {[%clk 0:02:59]} 2. Nf3 {[%clk 0:03:00]}  Nc6 {[%clk 0:02:59]} 3. Bc4 {[%clk 0:03:00]}  Nf6 {[%clk 0:02:59]} 4. d3 {[%clk 0:03:00]}  Be7 {[%clk 0:02:59]} 5. O-O {[%clk 0:02:59]}  O-O {[%clk 0:02:59]} 6. c3 {[%clk 0:02:59]}  d5 {[%clk 0:03:00]} 7. exd5 {[%clk 0:03:00]}  Nxd5 {[%clk 0:03:00]} 8. Re1 {[%clk 0:03:01]}  Bg4 {[%clk 0:03:01]} 9. h3 {[%clk 0:03:00]}  Bh5 {[%clk 0:03:01]} 10. Nbd2 {[%clk 0:03:00]}  Nb6 {[%clk 0:02:58]} 11. Bb3 {[%clk 0:02:51]}  Qxd3 {[%clk 0:02:56]} 12. Nxe5 {[%clk 0:02:49]}  Bxd1 {[%clk 0:02:44]} 13. Nxd3 {[%clk 0:02:49]}  Bxb3 {[%clk 0:02:44]} 14. Nxb3 {[%clk 0:02:50]}  Na4 {[%clk 0:02:31]} 15. Bf4 {[%clk 0:02:48]}  Rad8 {[%clk 0:02:24]} 16. Rad1 {[%clk 0:02:47]}  Bd6 {[%clk 0:02:18]} 17. Be3 {[%clk 0:02:39]}  h6 {[%clk 0:01:56]} 18. Nd4 {[%clk 0:02:37]}  Ne5 {[%clk 0:01:42]} 19. Nxe5 {[%clk 0:02:27]}  Bxe5 {[%clk 0:01:42]} 20. Rb1 {[%clk 0:02:28]}  Bxd4 {[%clk 0:01:33]} 21. Bxd4 {[%clk 0:02:29]}  c5 {[%clk 0:01:33]} 22. Be3 {[%clk 0:02:28]}  b6 {[%clk 0:01:26]} 23. Rec1 {[%clk 0:02:26]}  Rd3 {[%clk 0:01:22]} 24. Rc2 {[%clk 0:02:27]}  f5 {[%clk 0:01:20]} 25. g3 {[%clk 0:02:26]}  g5 {[%clk 0:01:19]} 26. Rbc1 {[%clk 0:02:20]}  f4 {[%clk 0:01:16]} 27. gxf4 {[%clk 0:02:21]}  gxf4 {[%clk 0:01:13]} 28. Bd2 {[%clk 0:02:21]}  c4 {[%clk 0:01:06]} 29. Kh2 {[%clk 0:02:21]}  Rf5 {[%clk 0:00:57]} 30. Rg1+ {[%clk 0:02:20]}  Kf7 {[%clk 0:00:56]} 31. Rg4 {[%clk 0:02:19]}  Rh5 {[%clk 0:00:46]} 32. Rxf4+ {[%clk 0:02:19]}  Ke6 {[%clk 0:00:46]} 33. h4 {[%clk 0:02:19]}  b5 {[%clk 0:00:43]} 34. Be3 {[%clk 0:02:15]}  a6 {[%clk 0:00:41]} 35. Re2 {[%clk 0:02:15]}  Kd5 {[%clk 0:00:41]} 36. Kg3 {[%clk 0:02:10]}  Re5 {[%clk 0:00:39]} 37. Kf3 {[%clk 0:02:08]}  h5 {[%clk 0:00:37]} 38. Rd4+ {[%clk 0:02:08]}  Rxd4 {[%clk 0:00:33]} 39. cxd4 {[%clk 0:02:09]}  Rf5+ {[%clk 0:00:33]} 40. Kg3 {[%clk 0:02:09]}  Ke4 {[%clk 0:00:33]} 41. Rd2 {[%clk 0:02:08]}  c3 {[%clk 0:00:29]} 42. bxc3 {[%clk 0:02:07]}  Nxc3 {[%clk 0:00:30]} 43. Rc2 {[%clk 0:01:57]}  Nd5 {[%clk 0:00:27]} 44. Bg5 {[%clk 0:01:41]}  Kxd4 {[%clk 0:00:23]} 45. Rc6 {[%clk 0:01:40]}  Nb4 {[%clk 0:00:21]} 46. Rh6 {[%clk 0:01:39]}  Nxa2 {[%clk 0:00:21]} 47. Rxa6 {[%clk 0:01:39]}  Nc3 {[%clk 0:00:20]} 48. Bf6+ {[%clk 0:01:35]}  Rxf6 {[%clk 0:00:19]} 0-1


[Site "https://www.chess.com"]

[Event "Titled Tuesday Blitz November 01 Early 2022"]
[White "Horobetz, Graham"]
[Black "Stribuk, Artiom"]
[WhiteFideId "2047322"]
[BlackFideId "13515659"]
[WhiteElo "2577"]
[BlackElo "2279"]
[Result "1-0"]
[Round "02"]
[TimeControl "180+1"]
[Date "2022.11.02"]
[WhiteClock "0:00:17"]
[BlackClock "0:00:07"]

1. e4 {[%clk 0:03:00]}  c5 {[%clk 0:02:59]} 2. Nf3 {[%clk 0:03:00]}  Nc6 {[%clk 0:02:59]} 3. d4 {[%clk 0:03:01]}  cxd4 {[%clk 0:03:00]} 4. Nxd4 {[%clk 0:03:01]}  Nf6 {[%clk 0:03:01]} 5. Nc3 {[%clk 0:03:02]}  e5 {[%clk 0:03:01]} 6. Ndb5 {[%clk 0:03:02]}  d6 {[%clk 0:03:02]} 7. Nd5 {[%clk 0:03:03]}  Nxd5 {[%clk 0:03:02]} 8. exd5 {[%clk 0:03:04]}  Ne7 {[%clk 0:03:03]} 9. a4 {[%clk 0:03:03]}  a6 {[%clk 0:02:59]} 10. Na3 {[%clk 0:02:59]}  Qa5+ {[%clk 0:02:54]} 11. Bd2 {[%clk 0:02:53]}  Qxd5 {[%clk 0:02:45]} 12. Nc4 {[%clk 0:02:43]}  Qc6 {[%clk 0:02:35]} 13. a5 {[%clk 0:02:34]}  Ng6 {[%clk 0:02:21]} 14. Bb4 {[%clk 0:02:23]}  Be6 {[%clk 0:01:54]} 15. Nxd6+ {[%clk 0:02:14]}  Bxd6 {[%clk 0:01:53]} 16. Qxd6 {[%clk 0:02:15]}  Qe4+ {[%clk 0:01:50]} 17. Be2 {[%clk 0:02:02]}  Rd8 {[%clk 0:01:41]} 18. Qc5 {[%clk 0:01:48]}  Rd5 {[%clk 0:01:10]} 19. f3 {[%clk 0:01:27]}  Rxc5 {[%clk 0:01:10]} 20. fxe4 {[%clk 0:01:27]}  Rxc2 {[%clk 0:01:11]} 21. g3 {[%clk 0:01:10]}  Rxb2 {[%clk 0:01:06]} 22. Ba3 {[%clk 0:01:10]}  Rb3 {[%clk 0:00:59]} 23. O-O {[%clk 0:01:04]}  Kd7 {[%clk 0:00:36]} 24. Rfd1+ {[%clk 0:00:46]}  Kc8 {[%clk 0:00:34]} 25. Rac1+ {[%clk 0:00:41]}  Kb8 {[%clk 0:00:35]} 26. Bd6+ {[%clk 0:00:41]}  Ka8 {[%clk 0:00:35]} 27. Bc7 {[%clk 0:00:29]}  Re3 {[%clk 0:00:28]} 28. Bxa6 {[%clk 0:00:19]}  bxa6 {[%clk 0:00:24]} 29. Rd6 {[%clk 0:00:19]}  Bc8 {[%clk 0:00:22]} 30. Rb6 {[%clk 0:00:16]}  Bb7 {[%clk 0:00:07]} 31. Rcb1 {[%clk 0:00:17]}  Bxe4 {[%clk 0:00:07]} 32. Rxa6# {[%clk 0:00:17]} 1-0


[Site "https://www.chess.com"]

[Event "Titled Tuesday Blitz November 01 Early 2022"]
[White "Ismayil, Malak"]
[Black "Shandrygin, Nikita"]
[WhiteFideId "13412604"]
[BlackFideId "24198668"]
[WhiteElo "1879"]
[BlackElo "2323"]
[Result "0-1"]
[Round "02"]
[TimeControl "180+1"]
[Date "2022.11.02"]
[WhiteClock "0:00:03"]
[BlackClock "0:00:49"]

1. e4 {[%clk 0:03:00]}  c5 {[%clk 0:02:50]} 2. Nf3 {[%clk 0:03:00]}  e6 {[%clk 0:02:50]} 3. g3 {[%clk 0:02:56]}  d5 {[%clk 0:02:50]} 4. exd5 {[%clk 0:02:55]}  exd5 {[%clk 0:02:51]} 5. Bg2 {[%clk 0:02:55]}  Nf6 {[%clk 0:02:49]} 6. O-O {[%clk 0:02:56]}  Be7 {[%clk 0:02:50]} 7. Re1 {[%clk 0:02:55]}  O-O {[%clk 0:02:51]} 8. d4 {[%clk 0:02:55]}  Nc6 {[%clk 0:02:51]} 9. Bg5 {[%clk 0:02:52]}  h6 {[%clk 0:02:49]} 10. Bf4 {[%clk 0:02:50]}  Ne4 {[%clk 0:02:45]} 11. Nbd2 {[%clk 0:02:43]}  Bf5 {[%clk 0:02:39]} 12. c3 {[%clk 0:02:34]}  Qb6 {[%clk 0:02:36]} 13. Qb3 {[%clk 0:02:26]}  Rfd8 {[%clk 0:02:07]} 14. Rad1 {[%clk 0:02:06]}  Bf6 {[%clk 0:01:57]} 15. dxc5 {[%clk 0:01:09]}  Qxc5 {[%clk 0:01:46]} 16. Be3 {[%clk 0:01:03]}  Qa5 {[%clk 0:01:42]} 17. Nxe4 {[%clk 0:01:00]}  Bxe4 {[%clk 0:01:43]} 18. Nd4 {[%clk 0:00:57]}  Ne5 {[%clk 0:01:41]} 19. Bxe4 {[%clk 0:00:55]}  dxe4 {[%clk 0:01:42]} 20. Qxb7 {[%clk 0:00:52]}  Rdb8 {[%clk 0:01:03]} 21. Qxe4 {[%clk 0:00:49]}  Qxa2 {[%clk 0:01:01]} 22. b3 {[%clk 0:00:40]}  Re8 {[%clk 0:00:59]} 23. Qb1 {[%clk 0:00:34]}  Qa6 {[%clk 0:00:57]} 24. c4 {[%clk 0:00:32]}  Qb7 {[%clk 0:00:56]} 25. Qf5 {[%clk 0:00:28]}  Rad8 {[%clk 0:00:54]} 26. c5 {[%clk 0:00:07]}  Rxd4 {[%clk 0:00:52]} 27. Bxd4 {[%clk 0:00:05]}  Nf3+ {[%clk 0:00:52]} 28. Kf1 {[%clk 0:00:03]}  Nxe1 {[%clk 0:00:49]} 0-1


[Site "https://www.chess.com"]

[Event "Titled Tuesday Blitz November 01 Early 2022"]
[White "Itkis, Boris"]
[Black "Garv Gaur"]
[WhiteFideId "1209167"]
[BlackFideId "45030839"]
[WhiteElo "2232"]
[BlackElo "1960"]
[Result "0-1"]
[Round "02"]
[TimeControl "180+1"]
[Date "2022.11.02"]
[WhiteClock "0:00:02"]
[BlackClock "0:00:09"]

1. c4 {[%clk 0:03:00]}  e6 {[%clk 0:02:59]} 2. Nf3 {[%clk 0:03:00]}  d5 {[%clk 0:03:00]} 3. g3 {[%clk 0:03:00]}  Nf6 {[%clk 0:03:00]} 4. Bg2 {[%clk 0:03:01]}  Be7 {[%clk 0:02:59]} 5. O-O {[%clk 0:03:01]}  O-O {[%clk 0:02:58]} 6. b3 {[%clk 0:03:02]}  b6 {[%clk 0:02:58]} 7. Bb2 {[%clk 0:03:01]}  Bb7 {[%clk 0:02:59]} 8. e3 {[%clk 0:03:02]}  c5 {[%clk 0:02:59]} 9. Qe2 {[%clk 0:03:02]}  Nc6 {[%clk 0:02:59]} 10. Ne1 {[%clk 0:03:01]}  d4 {[%clk 0:02:56]} 11. f4 {[%clk 0:02:58]}  Qd7 {[%clk 0:02:51]} 12. g4 {[%clk 0:02:48]}  Rfd8 {[%clk 0:02:43]} 13. g5 {[%clk 0:02:40]}  Ne8 {[%clk 0:02:42]} 14. Na3 {[%clk 0:02:28]}  Nd6 {[%clk 0:02:33]} 15. Nac2 {[%clk 0:02:09]}  Nf5 {[%clk 0:02:30]} 16. d3 {[%clk 0:02:01]}  dxe3 {[%clk 0:02:29]} 17. Nxe3 {[%clk 0:02:02]}  Ncd4 {[%clk 0:02:25]} 18. Qf2 {[%clk 0:01:58]}  Nxe3 {[%clk 0:02:20]} 19. Qxe3 {[%clk 0:01:56]}  Bxg2 {[%clk 0:02:19]} 20. Kxg2 {[%clk 0:01:56]}  Nf5 {[%clk 0:02:06]} 21. Qe2 {[%clk 0:01:50]}  Qc6+ {[%clk 0:01:46]} 22. Kg1 {[%clk 0:01:44]}  Nd4 {[%clk 0:01:44]} 23. Bxd4 {[%clk 0:01:38]}  Rxd4 {[%clk 0:01:43]} 24. Nc2 {[%clk 0:01:37]}  Rd7 {[%clk 0:01:42]} 25. Rad1 {[%clk 0:01:30]}  Rad8 {[%clk 0:01:41]} 26. Ne3 {[%clk 0:01:23]}  Bd6 {[%clk 0:01:26]} 27. Ng4 {[%clk 0:00:40]}  Bb8 {[%clk 0:01:23]} 28. h4 {[%clk 0:00:38]}  Rd4 {[%clk 0:01:21]} 29. Qe3 {[%clk 0:00:33]}  Qd6 {[%clk 0:01:01]} 30. Ne5 {[%clk 0:00:08]}  f6 {[%clk 0:01:01]} 31. gxf6 {[%clk 0:00:08]}  gxf6 {[%clk 0:01:01]} 32. Qg3+ {[%clk 0:00:08]}  Kf8 {[%clk 0:00:59]} 33. Kh1 {[%clk 0:00:05]}  Re8 {[%clk 0:00:21]} 34. Kh2 {[%clk 0:00:05]}  Qc7 {[%clk 0:00:11]} 35. Qg4 {[%clk 0:00:03]}  fxe5 {[%clk 0:00:10]} 36. fxe5+ {[%clk 0:00:04]}  Ke7 {[%clk 0:00:11]} 37. Qg7+ {[%clk 0:00:04]}  Kd8 {[%clk 0:00:11]} 38. Rf7 {[%clk 0:00:04]}  Rd7 {[%clk 0:00:11]} 39. Rdf1 {[%clk 0:00:04]}  Qxe5+ {[%clk 0:00:10]} 40. Qxe5 {[%clk 0:00:04]}  Bxe5+ {[%clk 0:00:11]} 41. Kh3 {[%clk 0:00:04]}  Rxd3+ {[%clk 0:00:11]} 42. Kg4 {[%clk 0:00:03]}  Rg8+ {[%clk 0:00:12]} 43. Kh5 {[%clk 0:00:04]}  Rd4 {[%clk 0:00:08]} 44. Rf8+ {[%clk 0:00:03]}  Rxf8 {[%clk 0:00:08]} 45. Rxf8+ {[%clk 0:00:04]}  Ke7 {[%clk 0:00:09]} 46. Ra8 {[%clk 0:00:05]}  Bg3 {[%clk 0:00:09]} 47. Rxa7+ {[%clk 0:00:05]}  Kf6 {[%clk 0:00:09]} 48. Rb7 {[%clk 0:00:02]}  Rxh4# {[%clk 0:00:09]} 0-1


[Site "https://www.chess.com"]

[Event "Titled Tuesday Blitz November 01 Early 2022"]
[White "Jia, Haoxiang"]
[Black "Kovalenko, Igor"]
[WhiteFideId "8602999"]
[BlackFideId "14117908"]
[WhiteElo "2630"]
[BlackElo "2574"]
[Result "1-0"]
[Round "02"]
[TimeControl "180+1"]
[Date "2022.11.01"]
[WhiteClock "0:00:46"]
[BlackClock "0:01:47"]

1. d4 {[%clk 0:03:00]}  Nf6 {[%clk 0:02:59]} 2. Nf3 {[%clk 0:03:00]}  g6 {[%clk 0:02:59]} 3. g3 {[%clk 0:03:00]}  Bg7 {[%clk 0:02:59]} 4. Bg2 {[%clk 0:02:59]}  O-O {[%clk 0:03:00]} 5. O-O {[%clk 0:02:59]}  a6 {[%clk 0:03:00]} 6. c4 {[%clk 0:02:54]}  d6 {[%clk 0:03:01]} 7. Nc3 {[%clk 0:02:52]}  Nc6 {[%clk 0:03:01]} 8. d5 {[%clk 0:02:52]}  Na5 {[%clk 0:03:01]} 9. Nd2 {[%clk 0:02:48]}  c5 {[%clk 0:03:00]} 10. Qc2 {[%clk 0:02:43]}  Rb8 {[%clk 0:03:00]} 11. b3 {[%clk 0:02:40]}  b5 {[%clk 0:03:00]} 12. Rb1 {[%clk 0:02:41]}  e5 {[%clk 0:03:00]} 13. dxe6 {[%clk 0:02:37]}  Bxe6 {[%clk 0:03:00]} 14. Nd1 {[%clk 0:02:37]}  Re8 {[%clk 0:02:56]} 15. Ne3 {[%clk 0:02:34]}  Qd7 {[%clk 0:02:55]} 16. Rd1 {[%clk 0:02:32]}  Nc6 {[%clk 0:02:55]} 17. Bxc6 {[%clk 0:02:21]}  Qxc6 {[%clk 0:02:55]} 18. Bb2 {[%clk 0:02:21]}  Bh3 {[%clk 0:02:52]} 19. Nf3 {[%clk 0:02:20]}  Rxe3 {[%clk 0:02:50]} 20. fxe3 {[%clk 0:02:18]}  Bf5 {[%clk 0:02:50]} 21. Qd2 {[%clk 0:02:03]}  Bxb1 {[%clk 0:02:50]} 22. Rxb1 {[%clk 0:02:00]}  bxc4 {[%clk 0:02:50]} 23. bxc4 {[%clk 0:02:00]}  Qe4 {[%clk 0:02:46]} 24. Rd1 {[%clk 0:01:42]}  Bh6 {[%clk 0:02:45]} 25. Bc1 {[%clk 0:01:41]}  Ng4 {[%clk 0:02:43]} 26. Qxd6 {[%clk 0:01:40]}  Bxe3+ {[%clk 0:02:41]} 27. Bxe3 {[%clk 0:01:36]}  Qxe3+ {[%clk 0:02:41]} 28. Kh1 {[%clk 0:01:36]}  Rb2 {[%clk 0:02:31]} 29. Rd2 {[%clk 0:01:20]}  Rb1+ {[%clk 0:02:28]} 30. Kg2 {[%clk 0:01:20]}  h5 {[%clk 0:02:17]} 31. Qf4 {[%clk 0:01:09]}  Qf2+ {[%clk 0:02:13]} 32. Kh3 {[%clk 0:01:10]}  Rh1 {[%clk 0:02:13]} 33. Kh4 {[%clk 0:01:06]}  Rxh2+ {[%clk 0:02:12]} 34. Kg5 {[%clk 0:01:06]}  Kg7 {[%clk 0:01:52]} 35. Rd7 {[%clk 0:01:05]}  Nh6 {[%clk 0:01:52]} 36. Qf6+ {[%clk 0:01:02]}  Kh7 {[%clk 0:01:52]} 37. Rxf7+ {[%clk 0:00:48]}  Nxf7+ {[%clk 0:01:51]} 38. Qxf7+ {[%clk 0:00:48]}  Kh8 {[%clk 0:01:52]} 39. Qe8+ {[%clk 0:00:46]}  Kg7 {[%clk 0:01:50]} 40. Qe7+ {[%clk 0:00:46]}  Kg8 {[%clk 0:01:47]} 41. Kf6 {[%clk 0:00:46]} 1-0


[Site "https://www.chess.com"]